bitfinex/quotes_BTCUSD_20230118
["timestamp","ask_amount","ask_price","bid_price","bid_amount"]
[1674039714825,0.32614527,21190.0,21189.0,0.946884]
[1674039715777,0.32614527,21190.0,21189.0,0.946944]
[1674039718013,0.32614527,21190.0,21189.0,0.475002]
[1674039719236,0.32614527,21190.0,21189.0,0.775002]
[1674039720208,0.32614527,21190.0,21189.0,0.475002]
[1674039720472,0.32614527,21190.0,21189.0,0.946944]
[1674039721252,0.06070852,21190.0,21189.0,0.475002]
[1674039721494,0.06070852,21190.0,21189.0,0.775002]
[1674039721735,0.06070852,21190.0,21189.0,0.774942]
[1674039722522,0.06070852,21190.0,21189.0,0.474942]
[1674039723010,0.14474852,21190.0,21189.0,0.774942]
[1674039723282,0.06070852,21190.0,21189.0,0.003]
[1674039723533,0.39497152,21190.0,21189.0,0.003]
[1674039724512,0.06070852,21190.0,21189.0,0.003]
[1674039725261,0.06070852,21190.0,21189.0,0.558932]
[1674039725511,0.06070852,21190.0,21189.0,0.858932]
[1674039725774,0.06070852,21190.0,21189.0,0.558932]
[1674039727225,0.06070852,21190.0,21189.0,0.858932]
[1674039727473,0.06070852,21190.0,21189.0,0.558932]
[1674039728200,0.06070852,21190.0,21189.0,0.474942]
[1674039728990,0.06070852,21190.0,21189.0,0.95839015]
[1674039730439,0.06070852,21190.0,21189.0,1.25839015]
[1674039731158,0.06070852,21190.0,21189.0,0.95839015]
[1674039731649,0.06070852,21190.0,21189.0,1.25839015]
[1674039731899,0.06070852,21190.0,21189.0,1.73033215]
[1674039732414,0.06070852,21190.0,21189.0,1.43033215]
[1674039732923,0.06070852,21190.0,21189.0,0.95839015]
[1674039733177,0.05977791,21190.0,21189.0,0.95839015]
[1674039735632,0.05977791,21190.0,21189.0,1.25839015]
[1674039736114,0.05977791,21190.0,21189.0,0.95839015]
[1674039736659,0.05977791,21190.0,21189.0,1.25839015]
[1674039736911,0.05977791,21190.0,21189.0,1.73033215]
[1674039738648,0.05977791,21190.0,21189.0,2.05004715]
[1674039739129,0.05977791,21190.0,21189.0,1.73033215]
[1674039739865,0.05977791,21190.0,21189.0,2.03885215]
[1674039742633,0.05977791,21190.0,21189.0,1.73033215]
[1674039743581,0.05977791,21190.0,21189.0,2.07972615]
[1674039747331,0.05977791,21190.0,21189.0,1.73033215]
[1674039747674,0.05977791,21190.0,21189.0,2.05417115]
[1674039749499,0.05977791,21190.0,21189.0,1.73033215]
[1674039749762,0.05977791,21190.0,21189.0,2.07538315]
[1674039751800,0.05977791,21190.0,21189.0,1.73033215]
[1674039753865,0.16740734,21190.0,21189.0,1.73033215]
[1674039754337,0.05477791,21190.0,21189.0,1.73033215]
[1674039756641,0.16740734,21190.0,21189.0,1.73033215]
[1674039756897,0.05477791,21190.0,21189.0,1.73033215]
[1674039758165,0.04977791,21190.0,21189.0,1.73033215]
[1674039761532,0.04977791,21190.0,21189.0,2.20227415]
[1674039762547,0.04977791,21190.0,21189.0,1.73033215]
[1674039766607,0.04977791,21190.0,21189.0,2.03653615]
[1674039767392,0.04977791,21190.0,21189.0,1.73033215]
[1674039769166,0.04977791,21190.0,21189.0,2.06235415]
[1674039771442,0.04977791,21190.0,21189.0,2.07402331]
[1674039773991,0.04977791,21190.0,21189.0,2.08252331]
[1674039774239,0.9674887,21191.0,21189.0,2.07952331]
[1674039774507,0.9674887,21191.0,21190.0,0.492517]
[1674039774744,0.9674887,21191.0,21190.0,1.436357]
[1674039775247,0.9674887,21191.0,21190.0,1.24384]
[1674039775501,1.0074887,21191.0,21190.0,1.24584]
[1674039777856,1.0074887,21191.0,21190.0,0.74584]
[1674039778115,1.0074887,21191.0,21190.0,0.7459]
[1674039779448,1.0074887,21191.0,21190.0,1.0459]
[1674039782990,1.0074887,21191.0,21190.0,1.04584]
[1674039783237,1.0074887,21191.0,21190.0,0.74584]
[1674039783478,1.0074887,21191.0,21190.0,1.04584]
[1674039784505,0.52404055,21191.0,21190.0,0.57392]
[1674039784755,0.52404055,21191.0,21190.0,1.04584]
[1674039785036,0.52404055,21191.0,21190.0,0.57392]
[1674039785492,0.52404055,21191.0,21190.0,1.04584]
[1674039788577,0.52404055,21191.0,21190.0,1.04584]
[1674039790430,0.52404055,21191.0,21190.0,1.364495]
[1674039792243,0.52404055,21191.0,21190.0,1.04584]
[1674039795394,0.52404055,21191.0,21190.0,1.36677]
[1674039798515,0.52404055,21191.0,21190.0,1.48819657]
[1674039798788,0.52404055,21191.0,21190.0,1.63280087]
[1674039799050,0.52404055,21191.0,21190.0,1.57644428]
[1674039799384,0.52404055,21191.0,21190.0,1.65777872]
[1674039799562,0.52404055,21191.0,21190.0,1.68943795]
[1674039800858,0.52404055,21191.0,21190.0,1.69043795]
[1674039801122,0.52404055,21191.0,21190.0,1.69040658]
[1674039801385,0.52404055,21191.0,21190.0,1.80329492]
[1674039802210,0.52404055,21191.0,21190.0,1.69041169]
[1674039802740,0.48404055,21191.0,21190.0,1.68841169]
[1674039803005,0.49104055,21191.0,21190.0,1.82131881]
[1674039803298,0.48404055,21191.0,21190.0,1.80231881]
[1674039803533,0.48404055,21191.0,21190.0,1.68933191]
[1674039804100,0.48404055,21191.0,21190.0,1.65664879]
[1674039804357,0.49104055,21191.0,21190.0,1.67564879]
[1674039804652,0.48404055,21191.0,21190.0,1.80224976]
[1674039804903,0.49104055,21191.0,21190.0,1.83347153]
[1674039805162,0.49104055,21191.0,21190.0,1.51843363]
[1674039805692,0.49104055,21191.0,21190.0,1.4055189]
[1674039806134,0.49104055,21191.0,21190.0,1.08477]
[1674039806136,0.49104055,21191.0,21190.0,0.76384]
[1674039807449,0.49104055,21191.0,21190.0,1.06384]
[1674039808209,0.49093963,21191.0,21190.0,1.06384]
[1674039810273,0.49093963,21191.0,21190.0,1.07390251]
[1674039811065,0.49093963,21191.0,21190.0,1.39483251]
[1674039812116,0.48993963,21191.0,21190.0,1.39383251]
[1674039813575,0.48993963,21191.0,21190.0,1.07290251]
[1674039814062,0.48993963,21191.0,21190.0,1.67257324]
[1674039814295,0.48993963,21191.0,21190.0,1.55965851]
[1674039814537,0.48993963,21191.0,21190.0,1.67257324]
[1674039815046,0.48993963,21191.0,21190.0,1.84194533]
[1674039815524,0.48993963,21191.0,21190.0,1.98763325]
[1674039816008,0.48993963,21191.0,21190.0,1.98763672]
[1674039816288,0.48993963,21191.0,21190.0,1.81826116]
[1674039816738,0.48993963,21191.0,21190.0,1.76174689]
[1674039816968,0.48993963,21191.0,21190.0,1.98763608]
[1674039817459,0.002597,21195.0,21190.0,1.81826116]
[1674039817698,0.002597,21195.0,21192.0,0.11289827]
[1674039817942,0.002597,21195.0,21193.0,2.215616]
[1674039818175,0.33301908,21195.0,21194.0,0.496225]
[1674039818408,0.33301908,21195.0,21194.0,1.243662]
[1674039818652,0.33901908,21195.0,21194.0,1.243662]
[1674039819081,0.33301908,21195.0,21194.0,0.97885583]
[1674039819333,0.34001908,21195.0,21194.0,0.96134372]
[1674039820374,0.009597,21195.0,21194.0,0.96134372]
[1674039820885,0.009597,21195.0,21194.0,1.26134372]
[1674039821137,0.009597,21195.0,21194.0,0.96134372]
[1674039821427,0.009597,21195.0,21194.0,1.26134372]
[1674039822427,0.009597,21195.0,21194.0,0.96134372]
[1674039822722,0.009597,21195.0,21194.0,1.26134372]
[1674039822945,0.009597,21195.0,21194.0,0.96134372]
[1674039823211,0.009597,21195.0,21194.0,1.26134372]
[1674039826743,0.009597,21195.0,21194.0,1.57046072]
[1674039828523,0.009597,21195.0,21194.0,1.26134372]
[1674039829816,0.009597,21195.0,21194.0,0.96134372]
[1674039830397,0.329526,21195.0,21194.0,0.96134372]
[1674039830858,0.329526,21195.0,21194.0,0.48951272]
[1674039833411,0.009597,21195.0,21194.0,0.48951272]
[1674039834423,0.009597,21195.0,21194.0,1.26134372]
[1674039841544,0.009597,21195.0,21194.0,1.57203972]
[1674039841799,0.00948454,21195.0,21194.0,1.57203972]
[1674039842057,0.00948454,21195.0,21194.0,1.26134372]
[1674039842313,0.00948454,21195.0,21194.0,1.57833672]
[1674039842819,0.00948454,21195.0,21194.0,1.57845386]
[1674039845972,0.00948454,21195.0,21194.0,1.59046587]
[1674039846469,0.00948454,21195.0,21194.0,1.70336414]
[1674039847282,0.00948454,21195.0,21194.0,1.59046587]
[1674039848039,0.00948454,21195.0,21194.0,1.75981328]
[1674039848305,0.00948454,21195.0,21194.0,1.90385626]
[1674039848830,0.00948454,21195.0,21194.0,1.87286764]
[1674039849097,0.00948454,21195.0,21194.0,1.70352023]
[1674039850943,0.00948454,21195.0,21194.0,1.87286764]
[1674039851272,0.00948454,21195.0,21194.0,1.70352023]
[1674039851721,0.00948454,21195.0,21194.0,1.90390992]
[1674039851980,0.00948454,21195.0,21194.0,1.70352023]
[1674039854648,0.00948454,21195.0,21194.0,1.59046587]
[1674039855363,0.00948454,21195.0,21194.0,1.59034873]
[1674039855623,0.00948454,21195.0,21194.0,0.65400501]
[1674039855874,0.00948454,21195.0,21194.0,1.28067401]
[1674039856135,0.00948454,21195.0,21194.0,1.58512864]
[1674039860381,2.50948454,21195.0,21194.0,1.58512864]
[1674039860640,2.50948454,21195.0,21194.0,1.28060464]
[1674039861138,2.50948454,21195.0,21194.0,0.96859263]
[1674039861410,2.50948454,21195.0,21194.0,1.26859263]
[1674039867366,2.50948454,21195.0,21194.0,1.27980489]
[1674039874807,2.50948454,21195.0,21194.0,1.26859263]
[1674039878031,2.50942265,21195.0,21194.0,1.26859263]
[1674039878283,2.50942265,21195.0,21194.0,1.26873273]
[1674039884753,2.50942265,21195.0,21194.0,1.38178709]
[1674039885421,2.50942265,21195.0,21194.0,1.5511345]
[1674039885638,2.50942265,21195.0,21194.0,1.38178709]
[1674039886984,2.50942265,21195.0,21194.0,1.5511345]
[1674039887235,2.50942265,21195.0,21194.0,1.57900358]
[1674039887474,2.50942265,21195.0,21194.0,1.91136058]
[1674039887682,2.50942265,21195.0,21194.0,1.91136079]
[1674039887902,2.50942265,21195.0,21194.0,1.71418187]
[1674039888128,2.50942265,21195.0,21194.0,1.91136078]
[1674039888352,2.50942265,21195.0,21194.0,1.88352928]
[1674039888610,2.50942265,21195.0,21194.0,1.55117228]
[1674039889053,2.50942265,21195.0,21194.0,1.55103218]
[1674039889314,2.50942265,21195.0,21194.0,1.26859263]
[1674039889536,2.50942265,21195.0,21194.0,1.38168477]
[1674039889975,2.50942265,21195.0,21194.0,1.26859263]
[1674039890199,2.50942265,21195.0,21194.0,1.38168477]
[1674039890428,2.50942265,21195.0,21194.0,1.26859263]
[1674039891236,2.50942265,21195.0,21194.0,1.38168477]
[1674039891497,2.50942265,21195.0,21194.0,1.26859263]
[1674039893620,2.50942265,21195.0,21194.0,0.96859263]
[1674039894141,2.82472665,21195.0,21194.0,1.26859263]
[1674039894398,2.50942265,21195.0,21194.0,1.26859263]
[1674039894928,2.50942265,21195.0,21194.0,0.96859263]
[1674039895176,2.82589565,21195.0,21194.0,0.96859263]
[1674039895442,2.50942265,21195.0,21194.0,1.26859263]
[1674039895706,2.82926065,21195.0,21194.0,1.26859263]
[1674039896010,2.50942265,21195.0,21194.0,1.26859263]
[1674039897798,2.83381965,21195.0,21194.0,1.26859263]
[1674039898055,2.50942265,21195.0,21194.0,1.26859263]
[1674039899088,2.50942265,21195.0,21194.0,1.26827671]
[1674039899340,2.50942265,21195.0,21194.0,0.96827671]
[1674039899614,2.82986865,21195.0,21194.0,1.26827671]
[1674039899878,2.50942265,21195.0,21194.0,1.26827671]
[1674039903025,2.50942265,21195.0,21194.0,1.38136885]
[1674039903277,2.50942265,21195.0,21194.0,1.26827671]
[1674039910872,2.82626065,21195.0,21194.0,1.26827671]
[1674039911417,2.50942265,21195.0,21194.0,1.26827671]
[1674039911703,2.83757665,21195.0,21194.0,1.26827671]
[1674039911959,2.50942265,21195.0,21194.0,1.26827671]
[1674039912448,2.83943465,21195.0,21194.0,1.26827671]
[1674039912704,2.50942265,21195.0,21194.0,1.26827671]
[1674039913998,2.83254265,21195.0,21194.0,1.26827671]
[1674039914810,2.50942265,21195.0,21194.0,1.26827671]
[1674039915328,2.82136565,21195.0,21194.0,1.26827671]
[1674039915657,2.50942265,21195.0,21194.0,1.26827671]
[1674039916155,2.81818665,21195.0,21194.0,1.26827671]
[1674039916424,2.50942265,21195.0,21194.0,1.26827671]
[1674039917579,2.50942265,21195.0,21194.0,1.38136885]
[1674039918084,2.50942265,21195.0,21194.0,1.26827671]
[1674039919410,2.50942265,21195.0,21194.0,1.38136885]
[1674039921475,2.50932401,21195.0,21194.0,1.38136885]
[1674039922551,2.50932401,21195.0,21194.0,1.26827671]
[1674039924306,2.50932401,21195.0,21194.0,1.38136885]
[1674039925080,2.50932401,21195.0,21194.0,1.26827671]
[1674039925632,2.50932401,21195.0,21194.0,1.38136885]
[1674039931835,2.50932401,21195.0,21194.0,1.26827671]
[1674039932093,2.50932401,21195.0,21194.0,1.38136885]
[1674039933657,2.57033178,21195.0,21194.0,1.38136885]
[1674039933914,2.57033178,21195.0,21194.0,1.26827671]
[1674039934195,2.57033178,21195.0,21194.0,1.38136885]
[1674039939420,2.57033178,21195.0,21194.0,1.55071626]
[1674039939897,2.57033178,21195.0,21194.0,1.38136885]
[1674039941698,2.57033178,21195.0,21194.0,1.26827671]
[1674039942902,2.57033178,21195.0,21194.0,0.96827671]
[1674039944509,2.57033178,21195.0,21194.0,1.26827671]
[1674039944743,2.57033178,21195.0,21194.0,1.38136885]
[1674039945001,2.57025262,21195.0,21194.0,1.38136885]
[1674039945514,2.57025262,21195.0,21194.0,1.15516618]
[1674039946527,2.57025262,21195.0,21194.0,1.35434604]
[1674039946796,2.57025262,21195.0,21194.0,1.67891604]
[1674039947063,2.57025262,21195.0,21194.0,1.90468826]
[1674039947308,2.57025262,21195.0,21194.0,1.91318826]
[1674039947822,2.57025262,21195.0,21194.0,1.63086568]
[1674039948342,2.57025262,21195.0,21194.0,1.80050635]
[1674039948603,2.57025262,21195.0,21194.0,1.68771465]
[1674039948870,2.57025262,21195.0,21194.0,1.57421639]
[1674039949385,2.57025262,21195.0,21194.0,1.68731299]
[1674039951165,2.57025262,21195.0,21194.0,1.33331131]
[1674039951421,2.57025262,21195.0,21194.0,1.16367064]
[1674039951690,2.57025262,21195.0,21194.0,1.05057404]
[1674039951947,2.57025262,21195.0,21194.0,1.04207404]
[1674039954253,2.57025262,21195.0,21194.0,1.15517064]
[1674039955017,2.57025262,21195.0,21194.0,1.04207404]
[1674039955529,2.57025262,21195.0,21194.0,1.15517064]
[1674039956554,2.57025262,21195.0,21194.0,1.35445005]
[1674039956802,2.57025262,21195.0,21194.0,1.32481131]
[1674039957053,2.57025262,21195.0,21194.0,1.15517064]
[1674039957575,2.57025262,21195.0,21194.0,1.46723972]
[1674039957830,2.57025262,21195.0,21194.0,1.58702753]
[1674039959109,2.57025262,21195.0,21194.0,1.5869302]
[1674039959407,2.57025262,21195.0,21194.0,1.81281939]
[1674039959958,2.57025262,21195.0,21194.0,1.70004942]
[1674039960438,2.57025262,21195.0,21194.0,1.70005012]
[1674039960686,2.57025262,21195.0,21194.0,1.15509663]
[1674039961247,2.57025262,21195.0,21194.0,1.3247373]
[1674039962544,2.57025262,21195.0,21194.0,1.15509663]
[1674039962743,2.57025262,21195.0,21194.0,1.35438957]
[1674039962992,2.57025262,21195.0,21194.0,1.24126965]
[1674039963241,2.57025262,21195.0,21194.0,1.67151729]
[1674039963503,2.57025262,21195.0,21194.0,1.67151744]
[1674039965258,2.57025262,21195.0,21194.0,1.55840165]
[1674039965511,2.57025262,21195.0,21194.0,1.67151597]
[1674039966275,2.57025262,21195.0,21194.0,1.55840165]
[1674039966766,2.57025262,21195.0,21194.0,1.78429084]
[1674039967312,2.57025262,21195.0,21194.0,1.61465017]
[1674039967807,2.57025262,21195.0,21194.0,1.78429703]
[1674039969599,2.57025262,21195.0,21194.0,1.46716503]
[1674039970850,2.57025262,21195.0,21194.0,1.79294803]
[1674039972883,2.57025262,21195.0,21194.0,1.79293152]
[1674039973133,2.57025262,21195.0,21194.0,1.62330117]
[1674039973874,2.57025262,21195.0,21194.0,1.79292178]
[1674039974366,2.57025262,21195.0,21194.0,1.79292126]
[1674039974618,2.57025262,21195.0,21194.0,1.79292145]
[1674039975866,2.57025262,21195.0,21194.0,1.56703226]
[1674039976470,2.57025262,21195.0,21194.0,1.35432879]
[1674039976938,2.57025262,21195.0,21194.0,0.85505624]
[1674039977233,2.57025262,21195.0,21194.0,0.74197671]
[1674039978251,2.57025262,21195.0,21194.0,0.85505624]
[1674039978498,2.57025262,21195.0,21194.0,1.15505624]
[1674039980516,2.57016679,21195.0,21194.0,1.15505624]
[1674039982346,2.57016679,21195.0,21194.0,1.04197671]
[1674039985227,1.57016679,21195.0,21194.0,1.04197671]
[1674039986031,1.57016679,21195.0,21194.0,1.15505624]
[1674039986565,1.57016679,21195.0,21194.0,1.46941724]
[1674039987603,1.57016679,21195.0,21194.0,1.68002062]
[1674039987867,1.57016679,21195.0,21194.0,1.79283028]
[1674039988468,1.57016679,21195.0,21194.0,1.67964339]
[1674039988734,1.57016679,21195.0,21194.0,1.68814339]
[1674039989289,1.57016679,21195.0,21194.0,1.91431772]
[1674039989828,1.57016679,21195.0,21194.0,1.68814339]
[1674039992399,1.57016679,21195.0,21194.0,1.91428253]
[1674039995022,1.57016679,21195.0,21194.0,1.68814339]
[1674039995508,1.57016679,21195.0,21194.0,1.91428898]
[1674039997342,1.57016679,21195.0,21194.0,1.68814339]
[1674039999894,1.56696679,21195.0,21194.0,1.68814339]
[1674040001180,1.56696679,21195.0,21194.0,1.91424256]
[1674040002922,1.56696679,21195.0,21194.0,1.68814339]
[1674040003185,1.56696679,21195.0,21194.0,1.9142441]
[1674040003721,1.56696679,21195.0,21194.0,1.68814339]
[1674040003979,1.56696679,21195.0,21194.0,1.91423702]
[1674040004237,1.56696679,21195.0,21194.0,1.91423662]
[1674040004501,1.56696679,21195.0,21194.0,1.68814339]
[1674040005065,1.56696679,21195.0,21194.0,1.91423686]
[1674040005326,1.56696679,21195.0,21194.0,1.91423642]
[1674040006654,1.56696679,21195.0,21194.0,1.68814339]
[1674040008538,1.56696679,21195.0,21194.0,1.91422078]
[1674040010092,1.56696679,21195.0,21194.0,1.68814339]
[1674040010856,1.56696679,21195.0,21194.0,1.91421579]
[1674040012156,1.56696679,21195.0,21194.0,1.68814339]
[1674040012459,1.56239879,21195.0,21194.0,1.68814339]
[1674040013717,1.56239879,21195.0,21194.0,1.91420353]
[1674040014246,1.56239879,21195.0,21194.0,1.68814339]
[1674040016164,1.56239879,21195.0,21194.0,1.68828349]
[1674040017249,1.55969879,21195.0,21194.0,1.68828349]
[1674040017504,1.55699879,21195.0,21194.0,1.68828349]
[1674040023513,1.55699879,21195.0,21194.0,1.40596091]
[1674040027379,1.55699879,21195.0,21194.0,1.74324606]
[1674040031187,1.55699879,21195.0,21194.0,1.68364826]
[1674040031432,1.55699879,21195.0,21194.0,1.37435926]
[1674040031786,1.55699879,21195.0,21194.0,1.09145981]
[1674040031959,1.55699879,21195.0,21194.0,1.40280681]
[1674040032705,1.55699879,21195.0,21194.0,1.09145981]
[1674040032954,1.55699879,21195.0,21194.0,1.37435634]
[1674040033213,1.55699879,21195.0,21194.0,1.67832692]
[1674040033469,1.55699879,21195.0,21194.0,1.39543039]
[1674040038984,1.55699879,21195.0,21194.0,1.1357801]
[1674040041790,1.55699879,21195.0,21194.0,1.41868227]
[1674040042099,1.55699879,21195.0,21194.0,1.42782227]
[1674040042316,1.55699879,21195.0,21194.0,1.11275227]
[1674040042839,1.55699879,21195.0,21194.0,1.33907364]
[1674040043094,1.55699879,21195.0,21194.0,1.33907396]
[1674040043405,1.55699879,21195.0,21194.0,1.11275227]
[1674040044450,1.55699879,21195.0,21194.0,1.1127217]
[1674040044709,1.55699879,21195.0,21194.0,1.33902566]
[1674040044962,1.55699879,21195.0,21194.0,1.1127217]
[1674040048810,1.55699879,21195.0,21194.0,0.8298501]
[1674040049058,1.55699879,21195.0,21194.0,1.1423721]
[1674040051199,1.55699879,21195.0,21194.0,1.47965725]
[1674040051424,1.55699879,21195.0,21194.0,1.1423721]
[1674040052626,1.55699879,21195.0,21194.0,1.47965725]
[1674040055435,1.55699879,21195.0,21194.0,1.1423721]
[1674040057441,1.55699879,21195.0,21194.0,0.8298501]
[1674040059448,1.55699879,21195.0,21194.0,1.1508691]
[1674040062488,1.55688078,21195.0,21194.0,1.1508691]
[1674040062965,1.55688078,21195.0,21194.0,1.1126741]
[1674040063986,1.55688078,21195.0,21194.0,0.8298501]
[1674040065767,1.55688078,21195.0,21194.0,1.1453571]
[1674040073685,1.55688078,21195.0,21194.0,1.47694802]
[1674040074241,1.55688078,21195.0,21194.0,1.13966287]
[1674040074968,1.55688078,21195.0,21194.0,1.37557287]
[1674040074969,1.06830877,21195.0,21194.0,1.37557287]
[1674040075000,0.11671327,21195.0,21194.0,1.37557287]
[1674040075275,0.11671327,21195.0,21194.0,1.87391238]
[1674040075513,0.11351327,21195.0,21194.0,1.8866645]
[1674040075767,0.11031327,21195.0,21194.0,1.8866645]
[1674040076023,0.00390556,21196.0,21195.0,0.01069903]
[1674040076281,5.6e-07,21196.0,21195.0,1.79680102]
[1674040076648,0.00383154,21199.0,21195.0,2.72307095]
[1674040076886,0.00383154,21199.0,21198.0,0.39573634]
[1674040077049,0.00383154,21199.0,21197.0,0.11307363]
[1674040077300,0.11950154,21199.0,21198.0,0.943484]
[1674040077611,0.11950154,21199.0,21198.0,0.471742]
[1674040077612,0.7995306,21199.0,21198.0,0.471742]
[1674040077899,0.27256315,21198.0,21197.0,0.471749]
[1674040078396,0.96276721,21198.0,21196.0,0.471766]
[1674040078661,0.68441706,21197.0,21196.0,0.471766]
[1674040078922,0.83441706,21197.0,21196.0,0.471766]
[1674040079196,0.471655,21197.0,21196.0,0.471766]
[1674040079446,0.321655,21197.0,21196.0,0.471766]
[1674040081289,0.329655,21197.0,21196.0,0.471766]
[1674040081551,0.479655,21197.0,21196.0,0.471766]
[1674040082321,0.479655,21197.0,21195.0,0.471809]
[1674040082322,0.15,21196.0,21195.0,0.471809]
[1674040082575,0.462217,21196.0,21195.0,0.471809]
[1674040082849,0.462217,21196.0,21193.0,0.47185]
[1674040082850,0.82497906,21196.0,21193.0,0.47185]
[1674040083104,0.67549406,21195.0,21193.0,0.47185]
[1674040083361,0.309912,21194.0,21193.0,0.47185]
[1674040085144,0.309912,21194.0,21193.0,0.77185]
[1674040085408,0.311912,21194.0,21193.0,0.53985]
[1674040088524,0.311912,21194.0,21193.0,1.011703]
[1674040089291,0.311912,21194.0,21193.0,1.311703]
[1674040090336,0.002,21194.0,21193.0,1.311703]
[1674040090581,0.002,21194.0,21193.0,1.32360489]
[1674040090851,0.63062015,21198.0,21193.0,1.25560489]
[1674040091115,0.003,21194.0,21193.0,1.31760489]
[1674040091645,0.005,21194.0,21193.0,1.37960489]
[1674040091895,0.36276206,21197.0,21193.0,1.25560489]
[1674040092178,0.97125015,21198.0,21194.0,0.3]
[1674040092512,0.329882,21197.0,21195.0,0.471804]
[1674040092702,0.309261,21196.0,21195.0,0.471804]
[1674040094207,0.339261,21196.0,21195.0,0.476804]
[1674040095816,0.339261,21196.0,21195.0,0.776804]
[1674040096355,0.339261,21196.0,21195.0,1.248613]
[1674040096605,0.03,21196.0,21195.0,1.248613]
[1674040098104,0.03,21196.0,21195.0,1.25990119]
[1674040099374,0.03,21196.0,21195.0,1.59284319]
[1674040099891,0.03,21196.0,21195.0,1.25990119]
[1674040101174,0.02991927,21196.0,21195.0,1.25990119]
[1674040102988,0.02991927,21196.0,21195.0,1.59869619]
[1674040103514,0.02601927,21196.0,21195.0,1.59869619]
[1674040103778,0.00383154,21199.0,21195.0,1.70676982]
[1674040104277,0.00383154,21199.0,21196.0,0.4585]
[1674040104564,0.00383154,21199.0,21197.0,1.415292]
[1674040104817,0.00383154,21199.0,21198.0,0.3]
[1674040105090,0.00583154,21199.0,21198.0,1.243484]
[1674040105644,0.01083154,21199.0,21198.0,1.243484]
[1674040106401,0.00883154,21199.0,21198.0,1.243484]
[1674040106676,0.02883154,21199.0,21198.0,1.248484]
[1674040110235,0.01645786,21199.0,21198.0,1.248484]
[1674040112477,0.01435786,21199.0,21198.0,1.248484]
[1674040112981,0.01225786,21199.0,21198.0,1.573314]
[1674040113247,0.01225786,21199.0,21198.0,1.58829]
[1674040113976,0.01225786,21199.0,21198.0,1.567388]
[1674040114487,0.01225786,21199.0,21198.0,1.256984]
[1674040115527,0.01225786,21199.0,21198.0,1.576626]
[1674040117843,0.01225786,21199.0,21198.0,1.256984]
[1674040118363,0.01225786,21199.0,21198.0,1.590761]
[1674040120240,0.01225786,21199.0,21198.0,1.566536]
[1674040126717,0.01225786,21199.0,21198.0,1.256984]
[1674040127275,0.01225786,21199.0,21198.0,1.586729]
[1674040128611,0.01225786,21199.0,21198.0,1.256984]
[1674040129579,0.01225786,21199.0,21198.0,1.584304]
[1674040130124,0.01225786,21199.0,21198.0,1.69737763]
[1674040130874,0.00463664,21200.0,21198.0,1.579304]
[1674040131169,0.00463664,21200.0,21199.0,0.12414]
[1674040131407,0.00463664,21200.0,21199.0,1.06758]
[1674040131659,0.00463664,21200.0,21199.0,1.36758]
[1674040132478,0.00563664,21200.0,21199.0,1.36758]
[1674040132731,0.00463664,21200.0,21199.0,1.36758]
[1674040132990,0.00563664,21200.0,21199.0,1.44858]
[1674040133244,0.00556823,21200.0,21199.0,1.44858]
[1674040135304,0.00556823,21200.0,21199.0,1.32444]
[1674040136086,0.32918823,21200.0,21199.0,1.32444]
[1674040136444,0.31925523,21200.0,21199.0,1.32444]
[1674040139298,0.00556823,21200.0,21199.0,1.32444]
[1674040143533,0.00556823,21200.0,21199.0,1.43751363]
[1674040144346,0.00556823,21200.0,21199.0,1.32444]
[1674040145380,0.00556823,21200.0,21199.0,1.43751363]
[1674040145689,0.00556823,21200.0,21199.0,1.32444]
[1674040147169,0.00556823,21200.0,21199.0,1.43751363]
[1674040149280,0.00556823,21200.0,21199.0,1.32444]
[1674040149581,0.00556823,21200.0,21199.0,1.43751363]
[1674040150916,0.00556823,21200.0,21199.0,1.45098095]
[1674040151174,0.00556823,21200.0,21199.0,1.62058224]
[1674040151436,0.00556823,21200.0,21199.0,1.53534318]
[1674040151690,0.00556823,21200.0,21199.0,1.64844874]
[1674040152255,0.00556823,21200.0,21199.0,1.45101288]
[1674040155156,0.00556823,21200.0,21199.0,1.53534416]
[1674040155418,0.00556823,21200.0,21199.0,1.9263486]
[1674040156478,0.00550597,21200.0,21199.0,1.95418408]
[1674040156739,0.00550597,21200.0,21199.0,1.86699508]
[1674040156996,0.00550597,21200.0,21199.0,1.64845308]
[1674040158290,0.00550597,21200.0,21199.0,1.6206176]
[1674040158822,0.00550597,21200.0,21199.0,1.64845276]
[1674040159067,0.00550597,21200.0,21199.0,1.6484528]
[1674040159339,0.00550597,21200.0,21199.0,1.6206176]
[1674040159597,0.00550597,21200.0,21199.0,1.45951631]
[1674040160153,0.00550597,21200.0,21199.0,1.65695253]
[1674040160635,0.00550597,21200.0,21199.0,1.37061937]
[1674040161128,0.00550597,21200.0,21199.0,1.34278444]
[1674040161835,0.00550597,21200.0,21199.0,1.37061966]
[1674040162359,0.00550597,21200.0,21199.0,1.37061986]
[1674040162620,0.00550597,21200.0,21199.0,1.34278444]
[1674040162880,0.00550597,21200.0,21199.0,1.17318315]
[1674040163136,0.00550597,21200.0,21199.0,0.76007416]
[1674040163412,0.33519497,21200.0,21199.0,0.76007416]
[1674040164505,0.36885547,21200.0,21199.0,0.74660684]
[1674040164808,0.33519497,21200.0,21199.0,0.73810684]
[1674040165320,0.33519497,21200.0,21199.0,0.26638684]
[1674040165601,0.69900393,21200.0,21199.0,0.081]
[1674040165878,0.83420887,21200.0,21199.0,0.081]
[1674040166133,1.11579326,21200.0,21199.0,0.081]
[1674040166381,1.26579326,21200.0,21199.0,0.081]
[1674040167140,1.11479326,21200.0,21196.0,0.943539]
[1674040167421,0.1341354,21200.0,21199.0,0.006]
[1674040167686,0.78912136,21200.0,21196.0,0.94354]
[1674040167970,0.41181468,21200.0,21199.0,0.006]
[1674040168222,1.23767264,21200.0,21197.0,0.47176]
[1674040168490,0.68244596,21199.0,21196.0,0.477771]
[1674040168746,0.56281468,21200.0,21196.0,0.477771]
[1674040168747,0.68973696,21198.0,21196.0,0.477771]
[1674040169011,0.332829,21197.0,21196.0,0.477771]
[1674040169319,0.332829,21197.0,21196.0,0.471771]
[1674040169573,0.332829,21197.0,21196.0,0.771771]
[1674040169828,0.332829,21197.0,21196.0,1.243558]
[1674040170086,0.307792,21197.0,21196.0,1.243558]
[1674040171087,0.325792,21197.0,21196.0,1.248558]
[1674040173462,0.325792,21197.0,21196.0,0.948558]
[1674040173692,0.325792,21197.0,21196.0,1.248558]
[1674040175828,0.018,21197.0,21196.0,1.248558]
[1674040180365,0.018,21197.0,21196.0,1.26036498]
[1674040180898,0.018,21197.0,21196.0,1.59309598]
[1674040183209,0.018,21197.0,21196.0,1.70620497]
[1674040183479,0.00450597,21200.0,21196.0,1.70120497]
[1674040183743,0.00450597,21200.0,21197.0,0.508615]
[1674040183997,0.00450597,21200.0,21198.0,1.415226]
[1674040184254,0.00450597,21200.0,21199.0,0.3]
[1674040184519,0.00450597,21200.0,21199.0,1.24344]